[Event "Early-Titled-Tuesday-Blitz-July-09-2024"]
[Site "Chess.com"]
[Date "2024.07.09"]
[Round "11"]
[White "Shuvalov"]
[Black "SharathRk6"]
[Result "0-1"]
[WhiteElo "2574"]
[BlackElo "2473"]
[TimeControl "180+1"]
[EndTime "10:06:50 PDT"]
[Termination "SharathRk6 won by resignation"]

1. c4 {[%clk 0:02:50]} 1... e5 {[%clk 0:02:58.1]} 2. Nc3 {[%clk 0:02:49.4]} 2...
Nf6 {[%clk 0:02:58.3]} 3. Nf3 {[%clk 0:02:49.4]} 3... Nc6 {[%clk 0:02:57.7]} 4.
d4 {[%clk 0:02:48.5]} 4... exd4 {[%clk 0:02:57]} 5. Nxd4 {[%clk 0:02:49.4]} 5...
Bb4 {[%clk 0:02:57.1]} 6. Nc2 {[%clk 0:02:42.8]} 6... Bxc3+ {[%clk 0:02:55.4]}
7. bxc3 {[%clk 0:02:43.7]} 7... O-O {[%clk 0:02:55.4]} 8. Bg5 {[%clk 0:02:43.3]}
8... h6 {[%clk 0:02:54.5]} 9. Bh4 {[%clk 0:02:41.7]} 9... d6 {[%clk 0:02:54.2]}
10. e3 {[%clk 0:02:41.3]} 10... Ne5 {[%clk 0:02:53.3]} 11. Nd4 {[%clk
0:02:27.1]} 11... Ng6 {[%clk 0:02:49.8]} 12. Bg3 {[%clk 0:02:26.5]} 12... Re8
{[%clk 0:02:50.3]} 13. Bd3 {[%clk 0:02:26]} 13... Ne5 {[%clk 0:02:49.2]} 14. Be2
{[%clk 0:02:24.1]} 14... Ne4 {[%clk 0:02:48.5]} 15. Qc2 {[%clk 0:02:21.1]} 15...
Nxg3 {[%clk 0:02:32.9]} 16. hxg3 {[%clk 0:02:22]} 16... Be6 {[%clk 0:02:32.5]}
17. Nxe6 {[%clk 0:02:20.5]} 17... Rxe6 {[%clk 0:02:29.4]} 18. Rd1 {[%clk
0:02:19.6]} 18... Qe7 {[%clk 0:02:27]} 19. O-O {[%clk 0:02:10.9]} 19... Re8
{[%clk 0:02:25.8]} 20. Rd4 {[%clk 0:02:03.4]} 20... Nd7 {[%clk 0:02:13.9]} 21.
Bg4 {[%clk 0:01:59.7]} 21... Rf6 {[%clk 0:02:12.3]} 22. Bxd7 {[%clk 0:01:59.3]}
22... Qxd7 {[%clk 0:02:12.3]} 23. c5 {[%clk 0:01:59.4]} 23... Qc6 {[%clk
0:02:10.2]} 24. cxd6 {[%clk 0:01:57.7]} 24... Rxd6 {[%clk 0:02:11.1]} 25. Rfd1
{[%clk 0:01:56.9]} 25... Red8 {[%clk 0:02:10.2]} 26. Qb3 {[%clk 0:01:52.8]}
26... b6 {[%clk 0:02:06.7]} 27. g4 {[%clk 0:01:46.7]} 27... a5 {[%clk 0:02:05]}
28. a4 {[%clk 0:01:45.3]} 28... Qc5 {[%clk 0:01:59.2]} 29. R1d2 {[%clk
0:01:14.5]} 29... Qc6 {[%clk 0:01:44.8]} 30. Qd1 {[%clk 0:00:47.5]} 30... Qxc3
{[%clk 0:01:38]} 31. Rxd6 {[%clk 0:00:46.7]} 31... Rxd6 {[%clk 0:01:38.3]} 32.
Rxd6 {[%clk 0:00:46]} 32... cxd6 {[%clk 0:01:39.2]} 33. Qxd6 {[%clk 0:00:46]}
33... Qe1+ {[%clk 0:01:31]} 34. Kh2 {[%clk 0:00:45.8]} 34... Qxf2 {[%clk
0:01:31.1]} 35. Qxb6 {[%clk 0:00:45.1]} 35... Qh4+ {[%clk 0:01:29.3]} 36. Kg1
{[%clk 0:00:45]} 36... Qe1+ {[%clk 0:01:28.8]} 37. Kh2 {[%clk 0:00:45.3]} 37...
Qb4 {[%clk 0:01:29.4]} 38. Qxb4 {[%clk 0:00:36.5]} 38... axb4 {[%clk 0:01:29.4]}
39. a5 {[%clk 0:00:37.4]} 39... b3 {[%clk 0:01:29.9]} 40. a6 {[%clk 0:00:38.3]}
40... b2 {[%clk 0:01:30.5]} 41. a7 {[%clk 0:00:39.2]} 41... b1=Q {[%clk
0:01:30.8]} 42. a8=Q+ {[%clk 0:00:39.8]} 42... Kh7 {[%clk 0:01:31.1]} 43. Qf3
{[%clk 0:00:39.5]} 43... Qg6 {[%clk 0:01:30.8]} 44. Qf5 {[%clk 0:00:38.4]} 44...
Qxf5 {[%clk 0:01:20]} 45. gxf5 {[%clk 0:00:39.3]} 45... Kg8 {[%clk 0:01:20.2]}
46. Kg3 {[%clk 0:00:39.4]} 46... Kf8 {[%clk 0:01:20.9]} 47. Kf4 {[%clk
0:00:39.6]} 47... Ke7 {[%clk 0:01:21.5]} 48. Ke5 {[%clk 0:00:40]} 48... Kd7
{[%clk 0:01:18.6]} 49. e4 {[%clk 0:00:37.4]} 49... Ke7 {[%clk 0:01:17.7]} 50. g4
{[%clk 0:00:35.3]} 50... g6 {[%clk 0:01:16.5]} 51. Kd5 {[%clk 0:00:31.3]} 51...
gxf5 {[%clk 0:01:14.1]} 52. gxf5 {[%clk 0:00:19.8]} 52... Kf6 {[%clk 0:01:10.6]}
53. Kd4 {[%clk 0:00:19.9]} 53... h5 {[%clk 0:01:10.2]} 54. Ke3 {[%clk
0:00:20.4]} 54... Ke5 {[%clk 0:01:09.9]} 55. Kf3 {[%clk 0:00:20.4]} 55... h4
{[%clk 0:01:10.4]} 56. f6 {[%clk 0:00:20.3]} 56... Kxf6 {[%clk 0:01:07.3]} 57.
Kg4 {[%clk 0:00:20.5]} 57... Ke5 {[%clk 0:01:07.9]} 58. Kxh4 {[%clk 0:00:20.9]}
58... Kxe4 {[%clk 0:01:08.6]} 59. Kg3 {[%clk 0:00:20.3]} 59... f5 {[%clk
0:01:09]} 60. Kg2 {[%clk 0:00:19.5]} 60... Ke3 {[%clk 0:01:09.1]} 61. Kf1 {[%clk
0:00:19.4]} 61... Kf3 {[%clk 0:01:09.8]} 62. Kg1 {[%clk 0:00:19.7]} 62... Ke2
{[%clk 0:01:10.4]} 63. Kg2 {[%clk 0:00:19.8]} 63... f4 {[%clk 0:01:11.1]} 0-1

[Event "Early-Titled-Tuesday-Blitz-July-09-2024"]
[Site "Chess.com"]
[Date "2024.07.09"]
[Round "11"]
[White "Dreamer_01"]
[Black "AmbartsumianTyhran2012"]
[Result "0-1"]
[WhiteElo "2447"]
[BlackElo "2564"]
[TimeControl "180+1"]
[EndTime "10:06:50 PDT"]
[Termination "AmbartsumianTyhran2012 won by resignation"]

1. c4 {[%clk 0:03:00.9]} 1... e6 {[%clk 0:02:54.7]} 2. Nf3 {[%clk 0:03:00.6]}
2... Nf6 {[%clk 0:02:54.2]} 3. g3 {[%clk 0:02:59.6]} 3... d5 {[%clk 0:02:53.6]}
4. b3 {[%clk 0:02:57]} 4... c5 {[%clk 0:02:51.8]} 5. Bg2 {[%clk 0:02:56.7]} 5...
Be7 {[%clk 0:02:51.6]} 6. O-O {[%clk 0:02:56.8]} 6... O-O {[%clk 0:02:51.6]} 7.
Bb2 {[%clk 0:02:54.6]} 7... d4 {[%clk 0:02:48]} 8. d3 {[%clk 0:02:54.8]} 8...
Nc6 {[%clk 0:02:48]} 9. Nbd2 {[%clk 0:02:55.3]} 9... e5 {[%clk 0:02:48.2]} 10.
a3 {[%clk 0:02:52.9]} 10... a5 {[%clk 0:02:47.6]} 11. Ng5 {[%clk 0:02:25.5]}
11... Qc7 {[%clk 0:02:37.4]} 12. Nge4 {[%clk 0:01:55.3]} 12... Nxe4 {[%clk
0:02:31.9]} 13. Bxe4 {[%clk 0:01:55.6]} 13... Be6 {[%clk 0:02:31.6]} 14. Bg2
{[%clk 0:01:46.5]} 14... f5 {[%clk 0:02:27]} 15. Qc2 {[%clk 0:01:28.4]} 15... h5
{[%clk 0:02:24.3]} 16. Nf3 {[%clk 0:01:15.3]} 16... g5 {[%clk 0:02:23]} 17. h4
{[%clk 0:01:14.4]} 17... g4 {[%clk 0:02:21.4]} 18. Nh2 {[%clk 0:01:11.9]} 18...
Bf6 {[%clk 0:02:18.1]} 19. Qd2 {[%clk 0:01:10.3]} 19... Qg7 {[%clk 0:02:16.8]}
20. Kh1 {[%clk 0:01:03.4]} 20... Rf7 {[%clk 0:02:12.5]} 21. Rg1 {[%clk
0:01:00.3]} 21... Raf8 {[%clk 0:02:09.1]} 22. Bxc6 {[%clk 0:00:51.4]} 22... bxc6
{[%clk 0:02:02.6]} 23. Qxa5 {[%clk 0:00:52]} 23... Be7 {[%clk 0:01:54.5]} 24.
Qd2 {[%clk 0:00:41.6]} 24... f4 {[%clk 0:01:52.8]} 25. Bc1 {[%clk 0:00:26]}
25... Qg6 {[%clk 0:01:23.9]} 26. Bb2 {[%clk 0:00:19.7]} 26... e4 {[%clk
0:01:21.5]} 27. Raf1 {[%clk 0:00:17.4]} 27... e3 {[%clk 0:01:20.7]} 28. Qe1
{[%clk 0:00:16.2]} 28... Bd6 {[%clk 0:01:17.2]} 29. gxf4 {[%clk 0:00:14.6]}
29... Bxf4 {[%clk 0:01:07.6]} 30. f3 {[%clk 0:00:15]} 30... g3 {[%clk
0:01:07.3]} 31. Rxg3 {[%clk 0:00:13]} 31... Bxg3 {[%clk 0:01:01.7]} 32. Rg1
{[%clk 0:00:13.1]} 32... Rg7 {[%clk 0:01:01.4]} 33. Qf1 {[%clk 0:00:09.2]} 33...
Bxh4 {[%clk 0:00:59.4]} 34. Rxg6 {[%clk 0:00:08.7]} 34... Rxg6 {[%clk
0:00:59.8]} 35. b4 {[%clk 0:00:08.5]} 35... Bf2 {[%clk 0:00:58.6]} 36. Ng4
{[%clk 0:00:04.4]} 36... hxg4 {[%clk 0:00:54.7]} 37. bxc5 {[%clk 0:00:04.8]}
37... gxf3 {[%clk 0:00:53.7]} 38. Bxd4 {[%clk 0:00:04.1]} 38... fxe2 {[%clk
0:00:49.9]} 39. Qh3 {[%clk 0:00:03.5]} 39... Bxh3 {[%clk 0:00:44]} 40. Kh2
{[%clk 0:00:03.7]} 40... Rf3 {[%clk 0:00:43.2]} 0-1

[Event "Early-Titled-Tuesday-Blitz-July-09-2024"]
[Site "Chess.com"]
[Date "2024.07.09"]
[Round "11"]
[White "queenazo"]
[Black "maurovargas01"]
[Result "1-0"]
[WhiteElo "1697"]
[BlackElo "1947"]
[TimeControl "180+1"]
[EndTime "10:06:51 PDT"]
[Termination "queenazo won by checkmate"]

1. e4 {[%clk 0:02:59.4]} 1... d5 {[%clk 0:02:58.7]} 2. exd5 {[%clk 0:02:58.6]}
2... Qxd5 {[%clk 0:02:58.3]} 3. Nc3 {[%clk 0:02:57.6]} 3... Qa5 {[%clk
0:02:58.3]} 4. d4 {[%clk 0:02:57.1]} 4... c6 {[%clk 0:02:58.2]} 5. Bd2 {[%clk
0:02:55.9]} 5... Qc7 {[%clk 0:02:57.9]} 6. Bc4 {[%clk 0:02:54.9]} 6... Nf6
{[%clk 0:02:57]} 7. Nf3 {[%clk 0:02:54.3]} 7... Bg4 {[%clk 0:02:56.9]} 8. O-O
{[%clk 0:02:53.1]} 8... e6 {[%clk 0:02:57]} 9. h3 {[%clk 0:02:52.4]} 9... Bh5
{[%clk 0:02:57]} 10. g3 {[%clk 0:02:46.8]} 10... Bd6 {[%clk 0:02:53.2]} 11. Qe2
{[%clk 0:02:44]} 11... O-O {[%clk 0:02:45.7]} 12. Ne4 {[%clk 0:02:37.6]} 12...
Nxe4 {[%clk 0:02:44.1]} 13. Qxe4 {[%clk 0:02:38.5]} 13... Nd7 {[%clk 0:02:36.7]}
14. Ng5 {[%clk 0:02:31.5]} 14... Nf6 {[%clk 0:02:32]} 15. Qh4 {[%clk 0:02:19.6]}
15... h6 {[%clk 0:02:25.5]} 16. Nf3 {[%clk 0:02:04.3]} 16... Bxf3 {[%clk
0:02:07.9]} 17. Bxh6 {[%clk 0:02:02.5]} 17... Bh5 {[%clk 0:01:50.9]} 18. Bd3
{[%clk 0:01:38.9]} 18... gxh6 {[%clk 0:01:47.8]} 19. Qxf6 {[%clk 0:01:36]} 19...
Bxg3 {[%clk 0:01:38.8]} 20. Qxh6 {[%clk 0:01:03.9]} 20... Bh2+ {[%clk
0:01:32.9]} 21. Kg2 {[%clk 0:01:02.7]} 21... Bf3+ {[%clk 0:01:21.1]} 22. Kxf3
{[%clk 0:00:58.5]} 22... f5 {[%clk 0:01:20.2]} 23. Qg6+ {[%clk 0:00:55.1]} 23...
Qg7 {[%clk 0:01:18.7]} 24. Qxe6+ {[%clk 0:00:53.5]} 24... Kh8 {[%clk 0:01:15.8]}
25. Rh1 {[%clk 0:00:50.3]} 25... Bc7 {[%clk 0:01:08.3]} 26. Rag1 {[%clk
0:00:49.1]} 26... Qh7 {[%clk 0:01:07.5]} 27. Rg6 {[%clk 0:00:44.6]} 27... Qh5+
{[%clk 0:00:54.3]} 28. Ke3 {[%clk 0:00:37]} 28... f4+ {[%clk 0:00:46.9]} 29. Kd2
{[%clk 0:00:34.4]} 29... Kh7 {[%clk 0:00:18.5]} 30. Rg5+ {[%clk 0:00:29.5]}
30... Kh8 {[%clk 0:00:12]} 31. Rxh5+ {[%clk 0:00:29.5]} 31... Kg7 {[%clk
0:00:07]} 32. Qg6# {[%clk 0:00:29.9]} 1-0

[Event "Early-Titled-Tuesday-Blitz-July-09-2024"]
[Site "Chess.com"]
[Date "2024.07.09"]
[Round "11"]
[White "GrumbleBruno"]
[Black "Rile-Man"]
[Result "0-1"]
[WhiteElo "2522"]
[BlackElo "2648"]
[TimeControl "180+1"]
[EndTime "10:06:57 PDT"]
[Termination "Rile-Man won by resignation"]

1. e4 {[%clk 0:03:00.9]} 1... Nc6 {[%clk 0:02:58.8]} 2. Nc3 {[%clk 0:03:00.3]}
2... d6 {[%clk 0:02:58.5]} 3. d4 {[%clk 0:02:59.1]} 3... g6 {[%clk 0:02:58.7]}
4. f4 {[%clk 0:02:59.1]} 4... Bg7 {[%clk 0:02:57.2]} 5. Be3 {[%clk 0:02:58.3]}
5... e5 {[%clk 0:02:55.4]} 6. Bb5 {[%clk 0:02:50]} 6... exd4 {[%clk 0:02:48.3]}
7. Bxd4 {[%clk 0:02:48.5]} 7... Nf6 {[%clk 0:02:45.6]} 8. e5 {[%clk 0:02:32.2]}
8... dxe5 {[%clk 0:02:44.8]} 9. Bxc6+ {[%clk 0:02:31.4]} 9... bxc6 {[%clk
0:02:44.2]} 10. Bxe5 {[%clk 0:02:31.7]} 10... Qe7 {[%clk 0:02:33.1]} 11. Qe2
{[%clk 0:02:29.3]} 11... O-O {[%clk 0:02:30]} 12. O-O-O {[%clk 0:02:27.8]} 12...
Bg4 {[%clk 0:02:21.3]} 13. Nf3 {[%clk 0:02:12.8]} 13... Nd5 {[%clk 0:02:16.6]}
14. Nxd5 {[%clk 0:01:42]} 14... cxd5 {[%clk 0:02:17.5]} 15. Rhe1 {[%clk
0:01:39.6]} 15... Rfe8 {[%clk 0:01:57.9]} 16. h3 {[%clk 0:01:30.8]} 16... Bf5
{[%clk 0:01:22.9]} 17. Qf2 {[%clk 0:01:17.3]} 17... Qd7 {[%clk 0:01:00.9]} 18.
Bxg7 {[%clk 0:01:13.9]} 18... Kxg7 {[%clk 0:01:01.8]} 19. Rxe8 {[%clk 0:01:08]}
19... Rxe8 {[%clk 0:01:00.4]} 20. Qd4+ {[%clk 0:01:07.3]} 20... f6 {[%clk
0:00:57.5]} 21. Qxd5 {[%clk 0:01:05.8]} 21... Qa4 {[%clk 0:00:48.9]} 22. Qb3
{[%clk 0:00:47.8]} 22... Qxf4+ {[%clk 0:00:47.6]} 23. Kb1 {[%clk 0:00:48]} 23...
Re2 {[%clk 0:00:40.7]} 24. Rc1 {[%clk 0:00:41.8]} 24... Rxg2 {[%clk 0:00:35]}
25. Qa3 {[%clk 0:00:30.6]} 25... Kh6 {[%clk 0:00:28.8]} 26. Qf8+ {[%clk
0:00:18.8]} 26... Kh5 {[%clk 0:00:27.4]} 27. Ne1 {[%clk 0:00:18.7]} 27... Rg1
{[%clk 0:00:23.8]} 28. Nd3 {[%clk 0:00:08.8]} 28... Rxc1+ {[%clk 0:00:19.9]} 29.
Nxc1 {[%clk 0:00:08.6]} 29... Qc4 {[%clk 0:00:18.1]} 30. Nd3 {[%clk 0:00:06.3]}
30... Bxd3 {[%clk 0:00:16.7]} 31. cxd3 {[%clk 0:00:06.7]} 31... Qxd3+ {[%clk
0:00:17.6]} 32. Kc1 {[%clk 0:00:07]} 32... Qe3+ {[%clk 0:00:17.1]} 33. Kc2
{[%clk 0:00:05.8]} 33... Qxh3 {[%clk 0:00:16.7]} 34. Qxf6 {[%clk 0:00:05.2]}
34... Qf5+ {[%clk 0:00:16.6]} 0-1

[Event "Early-Titled-Tuesday-Blitz-July-09-2024"]
[Site "Chess.com"]
[Date "2024.07.09"]
[Round "11"]
[White "GeorgiosSouleidis"]
[Black "MdChess1734"]
[Result "1-0"]
[WhiteElo "2634"]
[BlackElo "2422"]
[TimeControl "180+1"]
[EndTime "10:06:58 PDT"]
[Termination "GeorgiosSouleidis won by resignation"]

1. e4 {[%clk 0:03:00.9]} 1... c6 {[%clk 0:02:59.8]} 2. Nc3 {[%clk 0:03:00.4]}
2... d5 {[%clk 0:02:59.7]} 3. Nf3 {[%clk 0:03:00.9]} 3... Bg4 {[%clk 0:02:59.8]}
4. h3 {[%clk 0:03:00.8]} 4... Bxf3 {[%clk 0:02:59.1]} 5. Qxf3 {[%clk 0:03:01.7]}
5... e6 {[%clk 0:02:59.6]} 6. d4 {[%clk 0:03:01.4]} 6... Nd7 {[%clk 0:02:50.6]}
7. Bd3 {[%clk 0:02:57.6]} 7... Bb4 {[%clk 0:02:47.4]} 8. O-O {[%clk 0:02:55.6]}
8... Ne7 {[%clk 0:02:46.6]} 9. a3 {[%clk 0:02:50.5]} 9... Ba5 {[%clk 0:02:37.8]}
10. Qg3 {[%clk 0:02:44.3]} 10... dxe4 {[%clk 0:02:28.3]} 11. Nxe4 {[%clk
0:02:32.9]} 11... Nf5 {[%clk 0:02:26.8]} 12. Nd6+ {[%clk 0:02:08.4]} 12... Nxd6
{[%clk 0:02:25.3]} 13. Qxd6 {[%clk 0:02:09.3]} 13... Bc7 {[%clk 0:02:25.1]} 14.
Qb4 {[%clk 0:02:08.6]} 14... Qh4 {[%clk 0:02:17.7]} 15. Qxb7 {[%clk 0:01:56.7]}
15... Qd8 {[%clk 0:02:12.8]} 16. Qxc6 {[%clk 0:01:54.5]} 16... O-O {[%clk
0:02:13.4]} 17. c3 {[%clk 0:01:49]} 17... Rc8 {[%clk 0:02:12.3]} 18. Qf3 {[%clk
0:01:46.8]} 18... Nf6 {[%clk 0:02:03.9]} 19. Bf4 {[%clk 0:01:39.9]} 19... Bxf4
{[%clk 0:01:56.1]} 20. Qxf4 {[%clk 0:01:40.8]} 20... Qb6 {[%clk 0:01:55.4]} 21.
Rab1 {[%clk 0:01:34.7]} 21... Rfd8 {[%clk 0:01:53.4]} 22. Rfd1 {[%clk
0:01:32.9]} 22... Nd5 {[%clk 0:01:45.3]} 23. Qe4 {[%clk 0:01:31.2]} 23... g6
{[%clk 0:01:44.2]} 24. Qe2 {[%clk 0:01:21.3]} 24... Nf4 {[%clk 0:01:42.6]} 25.
Qf3 {[%clk 0:01:19.1]} 25... Qd6 {[%clk 0:01:35.5]} 26. Bf1 {[%clk 0:01:16.4]}
26... g5 {[%clk 0:01:20]} 27. c4 {[%clk 0:01:07.8]} 27... Rb8 {[%clk 0:01:14.6]}
28. b4 {[%clk 0:01:07.1]} 28... h6 {[%clk 0:01:11.7]} 29. g3 {[%clk 0:01:04.2]}
29... Ng6 {[%clk 0:01:03.9]} 30. Rbc1 {[%clk 0:01:00.6]} 30... Qf8 {[%clk
0:00:57.7]} 31. Bg2 {[%clk 0:00:59.2]} 31... Qg7 {[%clk 0:00:57.7]} 32. Qe4
{[%clk 0:00:54.9]} 32... Rd7 {[%clk 0:00:37.6]} 33. Qe3 {[%clk 0:00:53]} 33...
Rbd8 {[%clk 0:00:36.5]} 34. d5 {[%clk 0:00:53.2]} 34... e5 {[%clk 0:00:27]} 35.
c5 {[%clk 0:00:50.4]} 35... f5 {[%clk 0:00:27.3]} 36. c6 {[%clk 0:00:50.7]}
36... Rf7 {[%clk 0:00:24.2]} 37. d6 {[%clk 0:00:48.4]} 37... f4 {[%clk
0:00:24.4]} 38. Qb3 {[%clk 0:00:47.6]} 38... f3 {[%clk 0:00:13.5]} 39. Bxf3
{[%clk 0:00:45.9]} 39... Qf6 {[%clk 0:00:06]} 40. c7 {[%clk 0:00:37.7]} 40...
Rc8 {[%clk 0:00:03.7]} 41. d7 {[%clk 0:00:37.8]} 1-0

[Event "Early-Titled-Tuesday-Blitz-July-09-2024"]
[Site "Chess.com"]
[Date "2024.07.09"]
[Round "11"]
[White "ACollins05"]
[Black "NikFil2013"]
[Result "0-1"]
[WhiteElo "2484"]
[BlackElo "2410"]
[TimeControl "180+1"]
[EndTime "10:06:59 PDT"]
[Termination "NikFil2013 won by resignation"]

1. g3 {[%clk 0:03:00.9]} 1... d5 {[%clk 0:02:59.7]} 2. Bg2 {[%clk 0:03:00.2]}
2... c5 {[%clk 0:02:57.5]} 3. Nf3 {[%clk 0:02:59.3]} 3... Nc6 {[%clk 0:02:57.3]}
4. d4 {[%clk 0:02:58.5]} 4... cxd4 {[%clk 0:02:54.8]} 5. Nxd4 {[%clk 0:02:58]}
5... Nf6 {[%clk 0:02:52.7]} 6. O-O {[%clk 0:02:55.9]} 6... e6 {[%clk 0:02:51.1]}
7. c4 {[%clk 0:02:55]} 7... Bc5 {[%clk 0:02:46.7]} 8. Nxc6 {[%clk 0:02:53.9]}
8... bxc6 {[%clk 0:02:45.2]} 9. Nc3 {[%clk 0:02:54.2]} 9... O-O {[%clk
0:02:44.5]} 10. b3 {[%clk 0:02:53.3]} 10... Ba6 {[%clk 0:02:41.1]} 11. Bb2
{[%clk 0:02:51]} 11... dxc4 {[%clk 0:02:34.9]} 12. Bxc6 {[%clk 0:02:49.7]} 12...
Rc8 {[%clk 0:02:34.2]} 13. Bb5 {[%clk 0:02:47.2]} 13... Bxb5 {[%clk 0:02:30.6]}
14. Nxb5 {[%clk 0:02:48.1]} 14... cxb3 {[%clk 0:02:21]} 15. axb3 {[%clk
0:02:48.3]} 15... Qb6 {[%clk 0:02:08.6]} 16. Nc3 {[%clk 0:02:46.5]} 16... Rfd8
{[%clk 0:01:59.6]} 17. Qb1 {[%clk 0:02:40.9]} 17... Qxb3 {[%clk 0:01:50.2]} 18.
Rc1 {[%clk 0:02:36.6]} 18... Rd2 {[%clk 0:01:37.2]} 19. Ba3 {[%clk 0:02:04.3]}
19... Qc4 {[%clk 0:00:59.2]} 20. Ne4 {[%clk 0:01:59.3]} 20... Qxe4 {[%clk
0:00:19.1]} 21. Bxc5 {[%clk 0:01:54.8]} 21... h6 {[%clk 0:00:12.5]} 22. Be3
{[%clk 0:01:50.3]} 22... Rxc1+ {[%clk 0:00:09.6]} 23. Qxc1 {[%clk 0:01:49.4]}
23... Rxe2 {[%clk 0:00:10]} 24. Rxa7 {[%clk 0:01:46.6]} 24... Ng4 {[%clk
0:00:07]} 25. Ra3 {[%clk 0:01:35.5]} 25... Qf3 {[%clk 0:00:04.1]} 26. Bb6 {[%clk
0:01:30.9]} 26... Qe4 {[%clk 0:00:03.7]} 27. Be3 {[%clk 0:01:27.2]} 27... h5
{[%clk 0:00:03.6]} 28. h3 {[%clk 0:01:21]} 28... Nxe3 {[%clk 0:00:02.9]} 29.
Rxe3 {[%clk 0:01:21.5]} 29... Rxe3 {[%clk 0:00:03]} 30. fxe3 {[%clk 0:01:20.9]}
30... Qf3 {[%clk 0:00:03.6]} 31. Qe1 {[%clk 0:01:15.2]} 31... g6 {[%clk
0:00:04.2]} 32. Kh2 {[%clk 0:01:13.5]} 32... Kg7 {[%clk 0:00:04.7]} 33. Qc3+
{[%clk 0:01:12.5]} 33... Kh7 {[%clk 0:00:05.2]} 34. Qe1 {[%clk 0:01:12.3]} 34...
e5 {[%clk 0:00:04.5]} 35. e4 {[%clk 0:01:12.6]} 35... Qd3 {[%clk 0:00:03.7]} 36.
Kg2 {[%clk 0:01:10.1]} 36... Qc2+ {[%clk 0:00:02.3]} 37. Kg1 {[%clk 0:01:07.7]}
37... Qc6 {[%clk 0:00:03.2]} 38. Kg2 {[%clk 0:01:05.8]} 38... Qe6 {[%clk
0:00:03.4]} 39. h4 {[%clk 0:01:04.4]} 39... Qc6 {[%clk 0:00:03.6]} 40. Kh2
{[%clk 0:01:03.8]} 40... Qc2+ {[%clk 0:00:03.2]} 41. Kg1 {[%clk 0:01:03.1]}
41... Qd3 {[%clk 0:00:04]} 42. Qf2 {[%clk 0:00:56]} 42... Qd4 {[%clk 0:00:02.9]}
43. Qxd4 {[%clk 0:00:53.7]} 43... exd4 {[%clk 0:00:03.8]} 44. Kf2 {[%clk
0:00:54.2]} 44... Kg7 {[%clk 0:00:03.8]} 45. Ke2 {[%clk 0:00:55.1]} 45... Kf6
{[%clk 0:00:04.1]} 46. Kd3 {[%clk 0:00:55.8]} 46... Ke5 {[%clk 0:00:04.5]} 0-1

[Event "Early-Titled-Tuesday-Blitz-July-09-2024"]
[Site "Chess.com"]
[Date "2024.07.09"]
[Round "11"]
[White "BashirliSaadat"]
[Black "Chernov_Alexander_A"]
[Result "1-0"]
[WhiteElo "2409"]
[BlackElo "2284"]
[TimeControl "180+1"]
[EndTime "10:06:59 PDT"]
[Termination "BashirliSaadat won on time"]

1. d4 {[%clk 0:03:00.9]} 1... Nf6 {[%clk 0:02:59.4]} 2. e3 {[%clk 0:02:55.5]}
2... e6 {[%clk 0:02:58.3]} 3. f4 {[%clk 0:02:55]} 3... b6 {[%clk 0:02:57.4]} 4.
Bd3 {[%clk 0:02:54.5]} 4... Bb7 {[%clk 0:02:57.5]} 5. Nf3 {[%clk 0:02:54.7]}
5... Be4 {[%clk 0:02:55.6]} 6. O-O {[%clk 0:02:54]} 6... Be7 {[%clk 0:02:52.7]}
7. Qe2 {[%clk 0:02:49.8]} 7... O-O {[%clk 0:02:51]} 8. Nbd2 {[%clk 0:02:50]}
8... Bxd3 {[%clk 0:02:49.2]} 9. cxd3 {[%clk 0:02:50.9]} 9... c5 {[%clk
0:02:34.4]} 10. dxc5 {[%clk 0:02:47.3]} 10... bxc5 {[%clk 0:02:33.1]} 11. e4
{[%clk 0:02:44.6]} 11... Nc6 {[%clk 0:02:27.9]} 12. b3 {[%clk 0:02:42.2]} 12...
a5 {[%clk 0:02:20.8]} 13. Bb2 {[%clk 0:02:41.2]} 13... a4 {[%clk 0:02:20.1]} 14.
bxa4 {[%clk 0:02:35.2]} 14... Rxa4 {[%clk 0:02:17.1]} 15. Nb3 {[%clk 0:02:35.7]}
15... Qa8 {[%clk 0:02:03.7]} 16. Bc3 {[%clk 0:02:30.9]} 16... Qa7 {[%clk
0:01:55.7]} 17. Kh1 {[%clk 0:02:28.9]} 17... Ra8 {[%clk 0:01:54.5]} 18. Nc1
{[%clk 0:02:26.5]} 18... Nb4 {[%clk 0:01:39.5]} 19. Bxb4 {[%clk 0:02:24.2]}
19... Rxb4 {[%clk 0:01:35.2]} 20. Nd2 {[%clk 0:02:21.9]} 20... Rb2 {[%clk
0:01:30.5]} 21. Qd1 {[%clk 0:02:18.8]} 21... d5 {[%clk 0:01:15.3]} 22. exd5
{[%clk 0:02:14.9]} 22... exd5 {[%clk 0:01:12.3]} 23. a4 {[%clk 0:02:13.1]} 23...
h5 {[%clk 0:00:55]} 24. Nf3 {[%clk 0:02:12.1]} 24... Rb4 {[%clk 0:00:49.1]} 25.
Ne5 {[%clk 0:02:10.3]} 25... Rxa4 {[%clk 0:00:45.8]} 26. Nc6 {[%clk 0:02:05.5]}
26... Rxa1 {[%clk 0:00:38]} 27. Nxa7 {[%clk 0:02:05.1]} 27... R8xa7 {[%clk
0:00:37.6]} 28. Qe2 {[%clk 0:02:00.7]} 28... Bd6 {[%clk 0:00:29.5]} 29. Nb3
{[%clk 0:01:56.4]} 29... Rxf1+ {[%clk 0:00:20.2]} 30. Qxf1 {[%clk 0:01:57.3]}
30... Ng4 {[%clk 0:00:17.7]} 31. h3 {[%clk 0:01:38.9]} 31... Nf6 {[%clk
0:00:16.8]} 32. Qc1 {[%clk 0:01:28.2]} 32... Ra4 {[%clk 0:00:08.4]} 33. Nxc5
{[%clk 0:01:24.3]} 33... Rxf4 {[%clk 0:00:07.9]} 34. Nb3 {[%clk 0:01:20]} 34...
Rf2 {[%clk 0:00:07.2]} 35. Qe1 {[%clk 0:01:17.5]} 35... Rb2 {[%clk 0:00:05.3]}
36. Nd4 {[%clk 0:01:11.1]} 36... h4 {[%clk 0:00:05.3]} 37. Nf5 {[%clk
0:01:08.3]} 37... g5 {[%clk 0:00:04]} 38. Nxd6 {[%clk 0:01:07.4]} 38... Nh5
{[%clk 0:00:04]} 39. Qe8+ {[%clk 0:01:05.2]} 39... Kh7 {[%clk 0:00:03.9]} 40.
Qxf7+ {[%clk 0:01:05.2]} 40... Ng7 {[%clk 0:00:04.3]} 41. Nf5 {[%clk 0:01:02.7]}
41... Rb1+ {[%clk 0:00:03.6]} 42. Kh2 {[%clk 0:01:02.8]} 42... Rb7 {[%clk
0:00:03.1]} 43. Qxb7 {[%clk 0:01:01.2]} 43... Kg6 {[%clk 0:00:03.5]} 44. Qxg7+
{[%clk 0:01:00.1]} 44... Kxf5 {[%clk 0:00:03]} 45. Qf7+ {[%clk 0:01:00.1]} 1-0